[Event "Titled Tuesday Blitz November 07 Early 2023"]
[White "Dmitrenko, Viktor"]
[Black "Thake, Conrad"]
[WhiteFideId "14110270"]
[BlackFideId "5602947"]
[WhiteElo "2389"]
[BlackElo "1807"]
[Result "1-0"]
[Round "5"]
[TimeControl "180+1"]
[Date "2023.11.07"]
[WhiteClock "0:00:10"]
[BlackClock "0:00:11"]
[Board "199"]

1. e4 {[%clk 0:03:00]}  e6 {[%clk 0:02:58]} 2. d4 {[%clk 0:02:56]}  b6 {[%clk 0:02:58]} 3. Bd3 {[%clk 0:02:53]}  Bb7 {[%clk 0:02:58]} 4. Qe2 {[%clk 0:02:53]}  c5 {[%clk 0:02:54]} 5. d5 {[%clk 0:02:48]}  e5 {[%clk 0:02:51]} 6. c4 {[%clk 0:02:46]}  d6 {[%clk 0:02:51]} 7. Nc3 {[%clk 0:02:46]}  Nf6 {[%clk 0:02:40]} 8. h3 {[%clk 0:02:32]}  Be7 {[%clk 0:02:36]} 9. Nf3 {[%clk 0:02:27]}  h6 {[%clk 0:02:27]} 10. O-O {[%clk 0:02:26]}  g5 {[%clk 0:02:23]} 11. Nh2 {[%clk 0:02:21]}  Rg8 {[%clk 0:02:21]} 12. Ng4 {[%clk 0:02:20]}  Nxg4 {[%clk 0:02:16]} 13. Qxg4 {[%clk 0:02:19]}  Bc8 {[%clk 0:02:16]} 14. Qh5 {[%clk 0:02:13]}  Rg6 {[%clk 0:02:10]} 15. Be2 {[%clk 0:02:10]}  Nd7 {[%clk 0:02:03]} 16. Qf3 {[%clk 0:01:40]}  Nf6 {[%clk 0:02:01]} 17. g4 {[%clk 0:01:38]}  Bd7 {[%clk 0:01:52]} 18. Kh2 {[%clk 0:01:23]}  Qc7 {[%clk 0:01:52]} 19. Rg1 {[%clk 0:01:17]}  O-O-O {[%clk 0:01:50]} 20. Qe3 {[%clk 0:01:06]}  Rh8 {[%clk 0:01:48]} 21. Kg2 {[%clk 0:00:58]}  h5 {[%clk 0:01:47]} 22. Kf1 {[%clk 0:00:55]}  hxg4 {[%clk 0:01:44]} 23. hxg4 {[%clk 0:00:56]}  Rh4 {[%clk 0:01:42]} 24. f3 {[%clk 0:00:45]}  Ne8 {[%clk 0:01:31]} 25. Bd2 {[%clk 0:00:42]}  Rgh6 {[%clk 0:01:30]} 26. Be1 {[%clk 0:00:39]}  Rh3 {[%clk 0:01:25]} 27. Bf2 {[%clk 0:00:20]}  Rh1 {[%clk 0:01:25]} 28. Ke1 {[%clk 0:00:18]}  Rxg1+ {[%clk 0:01:25]} 29. Bxg1 {[%clk 0:00:19]}  Rh1 {[%clk 0:01:24]} 30. Kd2 {[%clk 0:00:20]}  a6 {[%clk 0:01:20]} 31. Rf1 {[%clk 0:00:16]}  Kb7 {[%clk 0:01:19]} 32. Bf2 {[%clk 0:00:15]}  Rxf1 {[%clk 0:01:18]} 33. Bxf1 {[%clk 0:00:16]}  f6 {[%clk 0:01:18]} 34. Bd3 {[%clk 0:00:12]}  Qc8 {[%clk 0:01:13]} 35. Qe1 {[%clk 0:00:13]}  Nc7 {[%clk 0:01:13]} 36. Qh1 {[%clk 0:00:13]}  Qg8 {[%clk 0:01:12]} 37. Qh6 {[%clk 0:00:12]}  Ne8 {[%clk 0:01:10]} 38. Ne2 {[%clk 0:00:11]}  Qg7 {[%clk 0:01:09]} 39. Qh5 {[%clk 0:00:10]}  Kc7 {[%clk 0:01:05]} 40. Ng3 {[%clk 0:00:10]}  Kd8 {[%clk 0:01:03]} 41. Be3 {[%clk 0:00:09]}  Nc7 {[%clk 0:01:01]} 42. a3 {[%clk 0:00:09]}  Be8 {[%clk 0:01:01]} 43. Qh3 {[%clk 0:00:09]}  Bd7 {[%clk 0:01:00]} 44. b4 {[%clk 0:00:07]}  Kc8 {[%clk 0:00:54]} 45. Kc3 {[%clk 0:00:07]}  Kb7 {[%clk 0:00:54]} 46. bxc5 {[%clk 0:00:06]}  dxc5 {[%clk 0:00:51]} 47. Qh5 {[%clk 0:00:04]}  Be8 {[%clk 0:00:49]} 48. Qh3 {[%clk 0:00:03]}  Bd7 {[%clk 0:00:49]} 49. Qh5 {[%clk 0:00:03]}  Be8 {[%clk 0:00:49]} 50. Qh1 {[%clk 0:00:04]}  Bd7 {[%clk 0:00:48]} 51. Nh5 {[%clk 0:00:05]}  Qf8 {[%clk 0:00:46]} 52. a4 {[%clk 0:00:04]}  Bxa4 {[%clk 0:00:43]} 53. Bc2 {[%clk 0:00:04]}  Bxc2 {[%clk 0:00:42]} 54. Kxc2 {[%clk 0:00:05]}  b5 {[%clk 0:00:42]} 55. cxb5 {[%clk 0:00:05]}  Nxb5 {[%clk 0:00:42]} 56. Qb1 {[%clk 0:00:05]}  Kb6 {[%clk 0:00:40]} 57. Ng3 {[%clk 0:00:05]}  Qc8 {[%clk 0:00:37]} 58. Nf5 {[%clk 0:00:05]}  Bd8 {[%clk 0:00:35]} 59. Qb3 {[%clk 0:00:05]}  Ka7 {[%clk 0:00:31]} 60. d6 {[%clk 0:00:03]}  Bb6 {[%clk 0:00:31]} 61. Qd5 {[%clk 0:00:03]}  c4 {[%clk 0:00:26]} 62. Bxb6+ {[%clk 0:00:02]}  Kxb6 {[%clk 0:00:26]} 63. Ne7 {[%clk 0:00:03]}  Qd7 {[%clk 0:00:23]} 64. Nf5 {[%clk 0:00:03]}  c3 {[%clk 0:00:21]} 65. Qb3 {[%clk 0:00:02]}  Ka7 {[%clk 0:00:18]} 66. Qd5 {[%clk 0:00:01]}  Nd4+ {[%clk 0:00:18]} 67. Nxd4 {[%clk 0:00:01]}  Qa4+ {[%clk 0:00:18]} 68. Nb3 {[%clk 0:00:01]}  Qa2+ {[%clk 0:00:16]} 69. Kxc3 {[%clk 0:00:02]}  Qf2 {[%clk 0:00:14]} 70. Qc5+ {[%clk 0:00:02]}  Qxc5+ {[%clk 0:00:12]} 71. Nxc5 {[%clk 0:00:03]}  Kb6 {[%clk 0:00:12]} 72. Kc4 {[%clk 0:00:04]}  Kc6 {[%clk 0:00:11]} 73. d7 {[%clk 0:00:05]}  Kc7 {[%clk 0:00:12]} 74. Nxa6+ {[%clk 0:00:05]}  Kxd7 {[%clk 0:00:12]} 75. Nc5+ {[%clk 0:00:06]}  Ke7 {[%clk 0:00:12]} 76. Kd5 {[%clk 0:00:06]}  Kf7 {[%clk 0:00:12]} 77. Nd7 {[%clk 0:00:06]}  Kg7 {[%clk 0:00:13]} 78. Nxf6 {[%clk 0:00:06]}  Kxf6 {[%clk 0:00:13]} 79. Kd6 {[%clk 0:00:07]}  Kg6 {[%clk 0:00:12]} 80. Kxe5 {[%clk 0:00:08]}  Kh6 {[%clk 0:00:13]} 81. Kf6 {[%clk 0:00:09]}  Kh7 {[%clk 0:00:13]} 82. e5 {[%clk 0:00:09]}  Kg8 {[%clk 0:00:13]} 83. Kxg5 {[%clk 0:00:07]}  Kf7 {[%clk 0:00:13]} 84. f4 {[%clk 0:00:08]}  Ke7 {[%clk 0:00:13]} 85. f5 {[%clk 0:00:08]}  Kf8 {[%clk 0:00:13]} 86. Kg6 {[%clk 0:00:09]}  Kg8 {[%clk 0:00:14]} 87. g5 {[%clk 0:00:10]}  Kh8 {[%clk 0:00:13]} 88. e6 {[%clk 0:00:10]}  Kg8 {[%clk 0:00:11]} 89. e7 {[%clk 0:00:10]} 1-0


[Site "https://www.chess.com"]

[Event "Titled Tuesday Blitz November 07 Early 2023"]
[White "LeoWin2012"]
[Black "Becerra, Juan David"]
[BlackFideId "4404998"]
[WhiteElo "2269"]
[BlackElo "2366"]
[Result "1-0"]
[Round "5"]
[TimeControl "180+1"]
[Date "2023.11.07"]
[WhiteClock "0:00:26"]
[BlackClock "0:00:00"]
[Board "200"]

1. e4 {[%clk 0:03:00]}  e6 {[%clk 0:02:37]} 2. d4 {[%clk 0:02:59]}  d5 {[%clk 0:02:35]} 3. Nc3 {[%clk 0:02:55]}  Bb4 {[%clk 0:02:30]} 4. Ne2 {[%clk 0:02:52]}  c5 {[%clk 0:02:24]} 5. exd5 {[%clk 0:02:39]}  Qxd5 {[%clk 0:02:19]} 6. a3 {[%clk 0:02:16]}  Bxc3+ {[%clk 0:02:16]} 7. Nxc3 {[%clk 0:02:17]}  Qxd4 {[%clk 0:02:12]} 8. Qxd4 {[%clk 0:02:17]}  cxd4 {[%clk 0:02:12]} 9. Nb5 {[%clk 0:02:18]}  Na6 {[%clk 0:02:04]} 10. Nxd4 {[%clk 0:02:06]}  e5 {[%clk 0:02:02]} 11. Nb5 {[%clk 0:01:53]}  Ne7 {[%clk 0:01:58]} 12. Nd6+ {[%clk 0:01:48]}  Kd7 {[%clk 0:01:58]} 13. Nxf7 {[%clk 0:01:47]}  Rf8 {[%clk 0:01:49]} 14. Nxe5+ {[%clk 0:01:47]}  Ke6 {[%clk 0:01:47]} 15. Nf3 {[%clk 0:01:46]}  b6 {[%clk 0:01:39]} 16. Bc4+ {[%clk 0:01:46]}  Kd7 {[%clk 0:01:32]} 17. O-O {[%clk 0:01:45]}  Bb7 {[%clk 0:01:31]} 18. Rd1+ {[%clk 0:01:40]}  Kc7 {[%clk 0:01:29]} 19. Ne5 {[%clk 0:01:40]}  Nc5 {[%clk 0:01:25]} 20. b4 {[%clk 0:01:36]}  Rf5 {[%clk 0:01:17]} 21. Bb2 {[%clk 0:01:27]}  Rg5 {[%clk 0:00:44]} 22. bxc5 {[%clk 0:01:19]}  Bxg2 {[%clk 0:00:36]} 23. Rd7+ {[%clk 0:01:17]}  Kc8 {[%clk 0:00:30]} 24. f4 {[%clk 0:00:29]}  Bh3+ {[%clk 0:00:08]} 25. fxg5 {[%clk 0:00:28]}  Bxd7 {[%clk 0:00:09]} 26. Nxd7 {[%clk 0:00:28]}  Kxd7 {[%clk 0:00:10]} 27. cxb6 {[%clk 0:00:28]}  axb6 {[%clk 0:00:10]} 28. Rd1+ {[%clk 0:00:27]}  Kc7 {[%clk 0:00:09]} 29. Be5+ {[%clk 0:00:28]}  Kc8 {[%clk 0:00:09]} 30. Bxg7 {[%clk 0:00:27]}  Ra4 {[%clk 0:00:07]} 31. Be6+ {[%clk 0:00:27]}  Kb8 {[%clk 0:00:07]} 32. Bf6 {[%clk 0:00:28]}  Ng6 {[%clk 0:00:05]} 33. Bf7 {[%clk 0:00:27]}  Rg4+ {[%clk 0:00:05]} 34. Kf2 {[%clk 0:00:27]}  Rf4+ {[%clk 0:00:05]} 35. Ke3 {[%clk 0:00:27]}  Rh4 {[%clk 0:00:05]} 36. Bxg6 {[%clk 0:00:27]}  hxg6 {[%clk 0:00:06]} 37. Rd2 {[%clk 0:00:27]}  Rh3+ {[%clk 0:00:06]} 38. Ke4 {[%clk 0:00:27]}  Rxa3 {[%clk 0:00:07]} 39. Ke5 {[%clk 0:00:25]}  Kc7 {[%clk 0:00:05]} 40. Ke6 {[%clk 0:00:25]}  Rh3 {[%clk 0:00:06]} 41. Kf7 {[%clk 0:00:26]}  b5 {[%clk 0:00:05]} 42. Kxg6 {[%clk 0:00:26]}  b4 {[%clk 0:00:02]} 43. Kf7 {[%clk 0:00:26]}  Kc6 {[%clk 0:00:02]} 44. g6 {[%clk 0:00:26]}  Kb5 {[%clk 0:00:00]} 45. g7 {[%clk 0:00:26]} 1-0


[Site "https://www.chess.com"]

[Event "Titled Tuesday Blitz November 07 Early 2023"]
[White "kingapolak"]
[Black "KorolDimitriy75"]
[WhiteElo "2168"]
[BlackElo "2331"]
[Result "0-1"]
[Round "5"]
[TimeControl "180+1"]
[Date "2023.11.07"]
[WhiteClock "0:00:00"]
[BlackClock "0:00:16"]
[Board "202"]

1. e4 {[%clk 0:02:56]}  c5 {[%clk 0:02:59]} 2. Nf3 {[%clk 0:02:54]}  d6 {[%clk 0:03:00]} 3. d4 {[%clk 0:02:51]}  cxd4 {[%clk 0:03:01]} 4. Nxd4 {[%clk 0:02:52]}  Nf6 {[%clk 0:03:01]} 5. Nc3 {[%clk 0:02:52]}  g6 {[%clk 0:03:02]} 6. f4 {[%clk 0:02:50]}  Nbd7 {[%clk 0:03:01]} 7. Bc4 {[%clk 0:02:43]}  Bg7 {[%clk 0:03:01]} 8. O-O {[%clk 0:02:34]}  O-O {[%clk 0:03:00]} 9. Kh1 {[%clk 0:02:33]}  Nc5 {[%clk 0:02:46]} 10. e5 {[%clk 0:02:09]}  dxe5 {[%clk 0:02:43]} 11. fxe5 {[%clk 0:02:10]}  Ng4 {[%clk 0:02:41]} 12. Bf4 {[%clk 0:01:42]}  Nxe5 {[%clk 0:02:32]} 13. Be2 {[%clk 0:01:36]}  Ne6 {[%clk 0:01:40]} 14. Nxe6 {[%clk 0:01:19]}  Bxe6 {[%clk 0:01:41]} 15. Qe1 {[%clk 0:01:17]}  Qb6 {[%clk 0:01:33]} 16. Qg3 {[%clk 0:01:13]}  Nc6 {[%clk 0:01:27]} 17. Rab1 {[%clk 0:00:58]}  Rac8 {[%clk 0:01:13]} 18. Bd3 {[%clk 0:00:38]}  Nb4 {[%clk 0:01:12]} 19. a3 {[%clk 0:00:31]}  Nxd3 {[%clk 0:01:11]} 20. Qxd3 {[%clk 0:00:32]}  Bc4 {[%clk 0:01:10]} 21. Qf3 {[%clk 0:00:17]}  Bxf1 {[%clk 0:01:11]} 22. Qxf1 {[%clk 0:00:17]}  Rfd8 {[%clk 0:00:51]} 23. Ne4 {[%clk 0:00:10]}  Rxc2 {[%clk 0:00:46]} 24. Bg3 {[%clk 0:00:07]}  Rxb2 {[%clk 0:00:42]} 25. Re1 {[%clk 0:00:07]}  h6 {[%clk 0:00:34]} 26. Bf2 {[%clk 0:00:03]}  Qb5 {[%clk 0:00:30]} 27. Bc5 {[%clk 0:00:01]}  Qxf1+ {[%clk 0:00:28]} 28. Rxf1 {[%clk 0:00:02]}  e6 {[%clk 0:00:26]} 29. Be7 {[%clk 0:00:02]}  Rd3 {[%clk 0:00:19]} 30. Bf6 {[%clk 0:00:02]}  Bxf6 {[%clk 0:00:18]} 31. Nxf6+ {[%clk 0:00:03]}  Kg7 {[%clk 0:00:17]} 32. Ne4 {[%clk 0:00:00]}  Rxa3 {[%clk 0:00:16]} 0-1


[Site "https://www.chess.com"]

[Event "Titled Tuesday Blitz November 07 Early 2023"]
[White "Feliz Dotel, Dewar Bienvenido"]
[Black "Shapiro, Daniel"]
[WhiteFideId "6402801"]
[BlackFideId "2001780"]
[WhiteElo "2125"]
[BlackElo "2329"]
[Result "1-0"]
[Round "5"]
[TimeControl "180+1"]
[Date "2023.11.07"]
[WhiteClock "0:00:03"]
[BlackClock "0:00:00"]
[Board "203"]

1. d4 {[%clk 0:02:59]}  Nf6 {[%clk 0:02:59]} 2. e3 {[%clk 0:02:59]}  g6 {[%clk 0:02:56]} 3. Nf3 {[%clk 0:02:59]}  Bg7 {[%clk 0:02:56]} 4. Be2 {[%clk 0:02:59]}  O-O {[%clk 0:02:56]} 5. b4 {[%clk 0:02:58]}  d6 {[%clk 0:02:55]} 6. Bb2 {[%clk 0:02:50]}  Nbd7 {[%clk 0:02:54]} 7. c4 {[%clk 0:02:50]}  e5 {[%clk 0:02:50]} 8. Nc3 {[%clk 0:02:49]}  e4 {[%clk 0:02:48]} 9. Nd2 {[%clk 0:02:49]}  Re8 {[%clk 0:02:42]} 10. O-O {[%clk 0:02:49]}  c6 {[%clk 0:02:35]} 11. Qc2 {[%clk 0:02:44]}  d5 {[%clk 0:02:35]} 12. b5 {[%clk 0:02:44]}  Nf8 {[%clk 0:02:29]} 13. a3 {[%clk 0:02:39]}  Bf5 {[%clk 0:02:26]} 14. a4 {[%clk 0:02:39]}  h5 {[%clk 0:02:25]} 15. a5 {[%clk 0:02:39]}  a6 {[%clk 0:02:23]} 16. bxc6 {[%clk 0:02:37]}  bxc6 {[%clk 0:02:22]} 17. cxd5 {[%clk 0:02:12]}  cxd5 {[%clk 0:02:23]} 18. Nb3 {[%clk 0:02:11]}  Ne6 {[%clk 0:02:17]} 19. Na4 {[%clk 0:02:06]}  Qb8 {[%clk 0:02:04]} 20. Nb6 {[%clk 0:01:49]}  Ra7 {[%clk 0:01:57]} 21. Nc5 {[%clk 0:01:45]}  Ng4 {[%clk 0:01:34]} 22. Bxg4 {[%clk 0:01:23]}  hxg4 {[%clk 0:01:35]} 23. Rab1 {[%clk 0:01:20]}  Ng5 {[%clk 0:01:11]} 24. g3 {[%clk 0:01:04]}  Nf3+ {[%clk 0:01:09]} 25. Kg2 {[%clk 0:01:04]}  Qd6 {[%clk 0:01:03]} 26. Qa4 {[%clk 0:00:53]}  Rf8 {[%clk 0:00:55]} 27. Ba3 {[%clk 0:00:42]}  Qd8 {[%clk 0:00:49]} 28. Nxa6 {[%clk 0:00:30]}  Rxa6 {[%clk 0:00:46]} 29. Bxf8 {[%clk 0:00:30]}  Bxf8 {[%clk 0:00:45]} 30. Rbc1 {[%clk 0:00:23]}  Qxb6 {[%clk 0:00:37]} 31. axb6 {[%clk 0:00:22]}  Rxa4 {[%clk 0:00:37]} 32. b7 {[%clk 0:00:22]}  Bd6 {[%clk 0:00:32]} 33. Rc8+ {[%clk 0:00:19]}  Kg7 {[%clk 0:00:31]} 34. Rd8 {[%clk 0:00:17]}  Bc7 {[%clk 0:00:25]} 35. Rc1 {[%clk 0:00:16]}  Bxd8 {[%clk 0:00:13]} 36. b8=Q {[%clk 0:00:16]}  Bf6 {[%clk 0:00:13]} 37. Qb5 {[%clk 0:00:15]}  Ra2 {[%clk 0:00:12]} 38. Qxd5 {[%clk 0:00:14]}  Ng5 {[%clk 0:00:09]} 39. Qxa2 {[%clk 0:00:11]}  Nh3 {[%clk 0:00:08]} 40. Rc7 {[%clk 0:00:10]}  Ng5 {[%clk 0:00:06]} 41. Qa7 {[%clk 0:00:06]}  Kh6 {[%clk 0:00:05]} 42. d5 {[%clk 0:00:06]}  Be5 {[%clk 0:00:04]} 43. Rxf7 {[%clk 0:00:06]}  Nxf7 {[%clk 0:00:03]} 44. Qxf7 {[%clk 0:00:06]}  Bd6 {[%clk 0:00:03]} 45. Qe8 {[%clk 0:00:05]}  Kg7 {[%clk 0:00:02]} 46. Qd8 {[%clk 0:00:05]}  Be5 {[%clk 0:00:02]} 47. d6 {[%clk 0:00:05]}  Bf6 {[%clk 0:00:01]} 48. Qc7+ {[%clk 0:00:03]}  Kf8 {[%clk 0:00:00]} 49. d7 {[%clk 0:00:03]} 1-0


[Site "https://www.chess.com"]

[Event "Titled Tuesday Blitz November 07 Early 2023"]
[White "katharinareinecke"]
[Black "Buscar, Michael"]
[BlackFideId "2603616"]
[WhiteElo "1892"]
[BlackElo "2314"]
[Result "1-0"]
[Round "5"]
[TimeControl "180+1"]
[Date "2023.11.07"]
[WhiteClock "0:00:41"]
[BlackClock "0:00:00"]
[Board "204"]

1. d4 {[%clk 0:02:59]}  f5 {[%clk 0:02:44]} 2. c4 {[%clk 0:02:57]}  g6 {[%clk 0:02:41]} 3. Nf3 {[%clk 0:02:54]}  Bg7 {[%clk 0:02:41]} 4. g3 {[%clk 0:02:54]}  e6 {[%clk 0:02:42]} 5. Bg2 {[%clk 0:02:52]}  Nf6 {[%clk 0:02:39]} 6. O-O {[%clk 0:02:51]}  O-O {[%clk 0:02:39]} 7. Nc3 {[%clk 0:02:38]}  d6 {[%clk 0:02:39]} 8. Qc2 {[%clk 0:02:23]}  Nc6 {[%clk 0:02:38]} 9. Rd1 {[%clk 0:02:14]}  Ne7 {[%clk 0:02:34]} 10. e4 {[%clk 0:02:11]}  d5 {[%clk 0:02:00]} 11. e5 {[%clk 0:02:03]}  Ne4 {[%clk 0:01:59]} 12. c5 {[%clk 0:01:59]}  Nxc3 {[%clk 0:01:58]} 13. bxc3 {[%clk 0:01:54]}  Bd7 {[%clk 0:01:56]} 14. a4 {[%clk 0:01:43]}  h6 {[%clk 0:01:51]} 15. a5 {[%clk 0:01:42]}  Bb5 {[%clk 0:01:46]} 16. Ba3 {[%clk 0:01:31]}  c6 {[%clk 0:01:37]} 17. Nd2 {[%clk 0:01:30]}  Qxa5 {[%clk 0:01:33]} 18. Bb4 {[%clk 0:01:24]}  Qc7 {[%clk 0:01:28]} 19. c4 {[%clk 0:01:19]}  dxc4 {[%clk 0:01:19]} 20. Nxc4 {[%clk 0:01:17]}  Bxc4 {[%clk 0:01:19]} 21. Qxc4 {[%clk 0:01:17]}  Qd7 {[%clk 0:01:09]} 22. Bc3 {[%clk 0:01:02]}  Nd5 {[%clk 0:01:00]} 23. Bxd5 {[%clk 0:01:01]}  Qxd5 {[%clk 0:00:59]} 24. Qxd5 {[%clk 0:01:01]}  exd5 {[%clk 0:00:26]} 25. Rdb1 {[%clk 0:00:54]}  Rf7 {[%clk 0:00:18]} 26. Rb3 {[%clk 0:00:53]}  Rd7 {[%clk 0:00:10]} 27. Rba3 {[%clk 0:00:52]}  a6 {[%clk 0:00:07]} 28. Ba5 {[%clk 0:00:50]}  Re8 {[%clk 0:00:06]} 29. Rb1 {[%clk 0:00:45]}  Kf7 {[%clk 0:00:03]} 30. Rab3 {[%clk 0:00:45]}  Ree7 {[%clk 0:00:03]} 31. f4 {[%clk 0:00:42]}  Ke6 {[%clk 0:00:03]} 32. Kf2 {[%clk 0:00:42]}  Rf7 {[%clk 0:00:03]} 33. Kf3 {[%clk 0:00:42]}  Bf8 {[%clk 0:00:03]} 34. Bb6 {[%clk 0:00:40]}  Be7 {[%clk 0:00:02]} 35. Ba5 {[%clk 0:00:40]}  Bf8 {[%clk 0:00:02]} 36. h3 {[%clk 0:00:41]}  Bg7 {[%clk 0:00:02]} 37. g4 {[%clk 0:00:41]}  fxg4+ {[%clk 0:00:01]} 38. hxg4 {[%clk 0:00:42]}  h5 {[%clk 0:00:00]} 39. gxh5 {[%clk 0:00:41]} 1-0


[Site "https://www.chess.com"]

[Event "Titled Tuesday Blitz November 07 Early 2023"]
[White "Hartikainen, Jarmo"]
[Black "Mayaud, Raphael"]
[WhiteFideId "503134"]
[BlackFideId "627151"]
[WhiteElo "2181"]
[BlackElo "2346"]
[Result "0-1"]
[Round "5"]
[TimeControl "180+1"]
[Date "2023.11.07"]
[WhiteClock "0:00:05"]
[BlackClock "0:00:17"]
[Board "208"]

1. e4 {[%clk 0:03:00]}  c5 {[%clk 0:02:53]} 2. c3 {[%clk 0:03:00]}  d5 {[%clk 0:02:51]} 3. exd5 {[%clk 0:03:00]}  Qxd5 {[%clk 0:02:39]} 4. d4 {[%clk 0:03:00]}  Nf6 {[%clk 0:02:36]} 5. Nf3 {[%clk 0:03:00]}  Nc6 {[%clk 0:02:35]} 6. Na3 {[%clk 0:02:59]}  Qd8 {[%clk 0:02:34]} 7. Bb5 {[%clk 0:02:36]}  e6 {[%clk 0:02:14]} 8. O-O {[%clk 0:02:30]}  Bd7 {[%clk 0:02:11]} 9. Nc2 {[%clk 0:02:15]}  a6 {[%clk 0:02:06]} 10. Bd3 {[%clk 0:02:13]}  Be7 {[%clk 0:02:04]} 11. dxc5 {[%clk 0:02:10]}  Bxc5 {[%clk 0:02:04]} 12. Be3 {[%clk 0:02:11]}  Qb6 {[%clk 0:01:58]} 13. Bxc5 {[%clk 0:02:07]}  Qxc5 {[%clk 0:01:58]} 14. Qe2 {[%clk 0:02:04]}  O-O {[%clk 0:01:56]} 15. h3 {[%clk 0:01:36]}  Rfe8 {[%clk 0:01:56]} 16. Rfe1 {[%clk 0:01:34]}  Rad8 {[%clk 0:01:52]} 17. Ne5 {[%clk 0:01:31]}  Nxe5 {[%clk 0:01:51]} 18. Qxe5 {[%clk 0:01:32]}  Qxe5 {[%clk 0:01:52]} 19. Rxe5 {[%clk 0:01:32]}  Bc6 {[%clk 0:01:46]} 20. Nb4 {[%clk 0:01:11]}  Bd7 {[%clk 0:01:18]} 21. Rd1 {[%clk 0:01:04]}  Bc8 {[%clk 0:01:18]} 22. Ree1 {[%clk 0:00:59]}  Kf8 {[%clk 0:01:16]} 23. g3 {[%clk 0:00:55]}  Bd7 {[%clk 0:01:04]} 24. Bf1 {[%clk 0:00:53]}  a5 {[%clk 0:01:03]} 25. Nc2 {[%clk 0:00:52]}  Bc6 {[%clk 0:01:02]} 26. Bg2 {[%clk 0:00:52]}  Bxg2 {[%clk 0:01:00]} 27. Kxg2 {[%clk 0:00:53]}  Ke7 {[%clk 0:00:54]} 28. Ne3 {[%clk 0:00:49]}  g6 {[%clk 0:00:52]} 29. Rxd8 {[%clk 0:00:47]}  Rxd8 {[%clk 0:00:52]} 30. Rd1 {[%clk 0:00:48]}  Rxd1 {[%clk 0:00:52]} 31. Nxd1 {[%clk 0:00:48]}  Kd6 {[%clk 0:00:52]} 32. Kf3 {[%clk 0:00:48]}  a4 {[%clk 0:00:49]} 33. b3 {[%clk 0:00:43]}  b5 {[%clk 0:00:45]} 34. Ne3 {[%clk 0:00:39]}  Kc5 {[%clk 0:00:42]} 35. g4 {[%clk 0:00:32]}  a3 {[%clk 0:00:39]} 36. Nc2 {[%clk 0:00:30]}  Nd5 {[%clk 0:00:37]} 37. Nxa3 {[%clk 0:00:21]}  Nxc3 {[%clk 0:00:36]} 38. Kf4 {[%clk 0:00:17]}  f6 {[%clk 0:00:35]} 39. g5 {[%clk 0:00:16]}  e5+ {[%clk 0:00:33]} 40. Ke3 {[%clk 0:00:14]}  f5 {[%clk 0:00:34]} 41. f4 {[%clk 0:00:11]}  e4 {[%clk 0:00:30]} 42. Nc2 {[%clk 0:00:11]}  Nxa2 {[%clk 0:00:25]} 43. Kd2 {[%clk 0:00:10]}  Nb4 {[%clk 0:00:24]} 44. Ne3 {[%clk 0:00:09]}  Nd5 {[%clk 0:00:23]} 45. Nc2 {[%clk 0:00:08]}  Nxf4 {[%clk 0:00:22]} 46. Ke3 {[%clk 0:00:07]}  Nd5+ {[%clk 0:00:22]} 47. Kd2 {[%clk 0:00:07]}  f4 {[%clk 0:00:23]} 48. h4 {[%clk 0:00:07]}  Nb4 {[%clk 0:00:21]} 49. Na3 {[%clk 0:00:06]}  Nc6 {[%clk 0:00:19]} 50. Ke2 {[%clk 0:00:05]}  Nd4+ {[%clk 0:00:19]} 51. Kf2 {[%clk 0:00:04]}  Nxb3 {[%clk 0:00:19]} 52. h5 {[%clk 0:00:04]}  gxh5 {[%clk 0:00:17]} 53. Ke2 {[%clk 0:00:05]}  h4 {[%clk 0:00:17]} 54. Kf2 {[%clk 0:00:06]}  Nd4 {[%clk 0:00:16]} 55. Kg2 {[%clk 0:00:07]}  b4 {[%clk 0:00:16]} 56. Nb1 {[%clk 0:00:05]}  Kc4 {[%clk 0:00:16]} 57. Nd2+ {[%clk 0:00:05]}  Kd3 {[%clk 0:00:16]} 58. Nb3 {[%clk 0:00:06]}  Nxb3 {[%clk 0:00:16]} 59. Kf2 {[%clk 0:00:05]}  Nd4 {[%clk 0:00:16]} 60. Kg2 {[%clk 0:00:05]}  b3 {[%clk 0:00:16]} 61. g6 {[%clk 0:00:06]}  hxg6 {[%clk 0:00:15]} 62. Kh3 {[%clk 0:00:06]}  g5 {[%clk 0:00:16]} 63. Kg4 {[%clk 0:00:06]}  b2 {[%clk 0:00:15]} 64. Kxg5 {[%clk 0:00:06]}  b1=Q {[%clk 0:00:16]} 65. Kxh4 {[%clk 0:00:06]}  f3 {[%clk 0:00:16]} 66. Kg3 {[%clk 0:00:06]}  f2 {[%clk 0:00:16]} 67. Kxf2 {[%clk 0:00:07]}  e3+ {[%clk 0:00:17]} 68. Kg3 {[%clk 0:00:07]}  e2 {[%clk 0:00:17]} 69. Kf4 {[%clk 0:00:07]}  e1=Q {[%clk 0:00:16]} 70. Kg4 {[%clk 0:00:06]}  Qe4+ {[%clk 0:00:16]} 71. Kg3 {[%clk 0:00:06]}  Qg1+ {[%clk 0:00:17]} 72. Kh3 {[%clk 0:00:05]}  Qeg4# {[%clk 0:00:17]} 0-1


[Site "https://www.chess.com"]

[Event "Titled Tuesday Blitz November 07 Early 2023"]
[White "Prohorov, Olexandr"]
[Black "Smirnov, Timofey"]
[WhiteFideId "14105578"]
[BlackFideId "24176427"]
[WhiteElo "2324"]
[BlackElo "2158"]
[Result "0-1"]
[Round "5"]
[TimeControl "180+1"]
[Date "2023.11.07"]
[WhiteClock "0:00:00"]
[BlackClock "0:00:12"]
[Board "209"]

1. e4 {[%clk 0:02:53]}  e5 {[%clk 0:02:59]} 2. Nf3 {[%clk 0:02:52]}  Nf6 {[%clk 0:02:59]} 3. d4 {[%clk 0:02:51]}  Nxe4 {[%clk 0:02:57]} 4. Bd3 {[%clk 0:02:51]}  Nc6 {[%clk 0:02:56]} 5. O-O {[%clk 0:02:42]}  d5 {[%clk 0:02:44]} 6. Re1 {[%clk 0:02:25]}  Be7 {[%clk 0:02:23]} 7. c4 {[%clk 0:02:17]}  Nxd4 {[%clk 0:01:43]} 8. cxd5 {[%clk 0:01:56]}  Nxf3+ {[%clk 0:01:30]} 9. Qxf3 {[%clk 0:01:55]}  Nf6 {[%clk 0:01:25]} 10. Rxe5 {[%clk 0:01:48]}  O-O {[%clk 0:01:24]} 11. Nc3 {[%clk 0:01:44]}  Bd6 {[%clk 0:01:21]} 12. Re1 {[%clk 0:01:43]}  Bg4 {[%clk 0:01:19]} 13. Qe3 {[%clk 0:01:37]}  Re8 {[%clk 0:01:16]} 14. Qd2 {[%clk 0:01:37]}  Qd7 {[%clk 0:00:35]} 15. Rxe8+ {[%clk 0:01:34]}  Rxe8 {[%clk 0:00:35]} 16. Bf1 {[%clk 0:01:19]}  Bb4 {[%clk 0:00:25]} 17. h3 {[%clk 0:00:57]}  Bh5 {[%clk 0:00:22]} 18. a3 {[%clk 0:00:55]}  Bxc3 {[%clk 0:00:22]} 19. Qxc3 {[%clk 0:00:46]}  Nxd5 {[%clk 0:00:22]} 20. Qb3 {[%clk 0:00:39]}  Nb6 {[%clk 0:00:17]} 21. Be3 {[%clk 0:00:35]}  Qe6 {[%clk 0:00:16]} 22. Qb5 {[%clk 0:00:27]}  Bg6 {[%clk 0:00:16]} 23. Rc1 {[%clk 0:00:24]}  c6 {[%clk 0:00:15]} 24. Qa5 {[%clk 0:00:00]}  Nd5 {[%clk 0:00:12]} 0-1


[Site "https://www.chess.com"]